Workbook

Sheet Sheet1
A1: id | B1: type | C1: sequence | D1: name | E1: nick_name | F1: begin_value | G1: include_begin | H1: end_value | I1: include_end | J1: remark
A2: 0 | B2: 0 | C2: 0 | D2: ** | E2: ** | F2: 0 | G2: 0 | H2: 0 | I2: 0 | K2: ="INSERT INTO exam_score_range(id, `type`, `sequence`, `name`, `nick_name`, `begin_value`, `begin_include`, `end_value`, `end_include`, remark) VALUES("&A2&", "&B2&", "&C2&", '"&D2&"', '"&E2&"', "&F2&", "&G2&", "&H2&", "&I2&", '"&J2&"');" -> INSERT INTO exam_score_range(id, `type`, `sequence`, `name`, `nick_name`, `begin_value`, `begin_include`, `end_value`, `end_include`, remark) VALUES(0, 0, 0, '**', '**', 0, 0, 0, 0, '');
A4: =1*1000000+B4*1000+F4/10 -> 1001075 | B4: 1 | C4: 10 | D4: 750 | E4: 750 | F4: 750 | G4: 1 | H4: 750 | I4: 1 | K4: ="INSERT INTO exam_score_range(id, `type`, `sequence`, `name`, `nick_name`, `begin_value`, `begin_include`, `end_value`, `end_include`, remark) VALUES("&A4&", "&B4&", "&C4&", '"&D4&"', '"&E4&"', "&F4&", "&G4&", "&H4&", "&I4&", '"&J4&"');" -> INSERT INTO exam_score_range(id, `type`, `sequence`, `name`, `nick_name`, `begin_value`, `begin_include`, `end_value`, `end_include`, remark) VALUES(1001075, 1, 10, '750', '750', 750, 1, 750, 1, '');
A5: =1*1000000+B5*1000+F5/10 -> 1001074 | B5: 1 | C5: 20 | D5: =F5&"—"&H5 -> 740—750 | E5: ="["&F5&","&H5&")" -> [740,750) | F5: 740 | G5: 1 | H5: 750 | I5: 0 | K5: ="INSERT INTO exam_score_range(id, `type`, `sequence`, `name`, `nick_name`, `begin_value`, `begin_include`, `end_value`, `end_include`, remark) VALUES("&A5&", "&B5&", "&C5&", '"&D5&"', '"&E5&"', "&F5&", "&G5&", "&H5&", "&I5&", '"&J5&"');" -> INSERT INTO exam_score_range(id, `type`, `sequence`, `name`, `nick_name`, `begin_value`, `begin_include`, `end_value`, `end_include`, remark) VALUES(1001074, 1, 20, '740—750', '[740,750)', 740, 1, 750, 0, '');
A6: 1001073 | B6: 1 | C6: 30 | D6: =F6&"—"&H6 -> 730—740 | E6: ="["&F6&","&H6&")" -> [730,740) | F6: 730 | G6: 1 | H6: 740 | I6: 0 | K6: ="INSERT INTO exam_score_range(id, `type`, `sequence`, `name`, `nick_name`, `begin_value`, `begin_include`, `end_value`, `end_include`, remark) VALUES("&A6&", "&B6&", "&C6&", '"&D6&"', '"&E6&"', "&F6&", "&G6&", "&H6&", "&I6&", '"&J6&"');" -> INSERT INTO exam_score_range(id, `type`, `sequence`, `name`, `nick_name`, `begin_value`, `begin_include`, `end_value`, `end_include`, remark) VALUES(1001073, 1, 30, '730—740', '[730,740)', 730, 1, 740, 0, '');
A7: 1001072 | B7: 1 | C7: 40 | D7: 720—730 | E7: [720,730) | F7: 720 | G7: 1 | H7: 730 | I7: 0 | K7: INSERT INTO exam_score_range(id, `type`, `sequence`, `name`, `nick_name`, `begin_value`, `begin_include`, `end_value`, `end_include`, remark) VALUES(1001072, 1, 40, '720—730', '[720,730)', 720, 1, 730, 0, '');
A8: 1001071 | B8: 1 | C8: 50 | D8: 710—720 | E8: [710,720) | F8: 710 | G8: 1 | H8: 720 | I8: 0 | K8: INSERT INTO exam_score_range(id, `type`, `sequence`, `name`, `nick_name`, `begin_value`, `begin_include`, `end_value`, `end_include`, remark) VALUES(1001071, 1, 50, '710—720', '[710,720)', 710, 1, 720, 0, '');
A9: 1001070 | B9: 1 | C9: 60 | D9: 700—710 | E9: [700,710) | F9: 700 | G9: 1 | H9: 710 | I9: 0 | K9: INSERT INTO exam_score_range(id, `type`, `sequence`, `name`, `nick_name`, `begin_value`, `begin_include`, `end_value`, `end_include`, remark) VALUES(1001070, 1, 60, '700—710', '[700,710)', 700, 1, 710, 0, '');
A10: 1001069 | B10: 1 | C10: 70 | D10: 690—700 | E10: [690,700) | F10: 690 | G10: 1 | H10: 700 | I10: 0 | K10: INSERT INTO exam_score_range(id, `type`, `sequence`, `name`, `nick_name`, `begin_value`, `begin_include`, `end_value`, `end_include`, remark) VALUES(1001069, 1, 70, '690—700', '[690,700)', 690, 1, 700, 0, '');
A11: 1001068 | B11: 1 | C11: 80 | D11: 680—690 | E11: [680,690) | F11: 680 | G11: 1 | H11: 690 | I11: 0 | K11: INSERT INTO exam_score_range(id, `type`, `sequence`, `name`, `nick_name`, `begin_value`, `begin_include`, `end_value`, `end_include`, remark) VALUES(1001068, 1, 80, '680—690', '[680,690)', 680, 1, 690, 0, '');
A12: 1001067 | B12: 1 | C12: 90 | D12: 670—680 | E12: [670,680) | F12: 670 | G12: 1 | H12: 680 | I12: 0 | K12: INSERT INTO exam_score_range(id, `type`, `sequence`, `name`, `nick_name`, `begin_value`, `begin_include`, `end_value`, `end_include`, remark) VALUES(1001067, 1, 90, '670—680', '[670,680)', 670, 1, 680, 0, '');
A13: 1001066 | B13: 1 | C13: 100 | D13: 660—670 | E13: [660,670) | F13: 660 | G13: 1 | H13: 670 | I13: 0 | K13: INSERT INTO exam_score_range(id, `type`, `sequence`, `name`, `nick_name`, `begin_value`, `begin_include`, `end_value`, `end_include`, remark) VALUES(1001066, 1, 100, '660—670', '[660,670)', 660, 1, 670, 0, '');
A14: 1001065 | B14: 1 | C14: 110 | D14: 650—660 | E14: [650,660) | F14: 650 | G14: 1 | H14: 660 | I14: 0 | K14: INSERT INTO exam_score_range(id, `type`, `sequence`, `name`, `nick_name`, `begin_value`, `begin_include`, `end_value`, `end_include`, remark) VALUES(1001065, 1, 110, '650—660', '[650,660)', 650, 1, 660, 0, '');
A15: 1001064 | B15: 1 | C15: 120 | D15: 640—650 | E15: [640,650) | F15: 640 | G15: 1 | H15: 650 | I15: 0 | K15: INSERT INTO exam_score_range(id, `type`, `sequence`, `name`, `nick_name`, `begin_value`, `begin_include`, `end_value`, `end_include`, remark) VALUES(1001064, 1, 120, '640—650', '[640,650)', 640, 1, 650, 0, '');
A16: 1001063 | B16: 1 | C16: 130 | D16: 630—640 | E16: [630,640) | F16: 630 | G16: 1 | H16: 640 | I16: 0 | K16: INSERT INTO exam_score_range(id, `type`, `sequence`, `name`, `nick_name`, `begin_value`, `begin_include`, `end_value`, `end_include`, remark) VALUES(1001063, 1, 130, '630—640', '[630,640)', 630, 1, 640, 0, '');
A17: 1001062 | B17: 1 | C17: 140 | D17: 620—630 | E17: [620,630) | F17: 620 | G17: 1 | H17: 630 | I17: 0 | K17: INSERT INTO exam_score_range(id, `type`, `sequence`, `name`, `nick_name`, `begin_value`, `begin_include`, `end_value`, `end_include`, remark) VALUES(1001062, 1, 140, '620—630', '[620,630)', 620, 1, 630, 0, '');
A18: 1001061 | B18: 1 | C18: 150 | D18: 610—620 | E18: [610,620) | F18: 610 | G18: 1 | H18: 620 | I18: 0 | K18: INSERT INTO exam_score_range(id, `type`, `sequence`, `name`, `nick_name`, `begin_value`, `begin_include`, `end_value`, `end_include`, remark) VALUES(1001061, 1, 150, '610—620', '[610,620)', 610, 1, 620, 0, '');
A19: 1001060 | B19: 1 | C19: 160 | D19: 600—610 | E19: [600,610) | F19: 600 | G19: 1 | H19: 610 | I19: 0 | K19: INSERT INTO exam_score_range(id, `type`, `sequence`, `name`, `nick_name`, `begin_value`, `begin_include`, `end_value`, `end_include`, remark) VALUES(1001060, 1, 160, '600—610', '[600,610)', 600, 1, 610, 0, '');
A20: 1001059 | B20: 1 | C20: 170 | D20: 590—600 | E20: [590,600) | F20: 590 | G20: 1 | H20: 600 | I20: 0 | K20: INSERT INTO exam_score_range(id, `type`, `sequence`, `name`, `nick_name`, `begin_value`, `begin_include`, `end_value`, `end_include`, remark) VALUES(1001059, 1, 170, '590—600', '[590,600)', 590, 1, 600, 0, '');
A21: 1001058 | B21: 1 | C21: 180 | D21: 580—590 | E21: [580,590) | F21: 580 | G21: 1 | H21: 590 | I21: 0 | K21: INSERT INTO exam_score_range(id, `type`, `sequence`, `name`, `nick_name`, `begin_value`, `begin_include`, `end_value`, `end_include`, remark) VALUES(1001058, 1, 180, '580—590', '[580,590)', 580, 1, 590, 0, '');
A22: 1001057 | B22: 1 | C22: 190 | D22: 570—580 | E22: [570,580) | F22: 570 | G22: 1 | H22: 580 | I22: 0 | K22: INSERT INTO exam_score_range(id, `type`, `sequence`, `name`, `nick_name`, `begin_value`, `begin_include`, `end_value`, `end_include`, remark) VALUES(1001057, 1, 190, '570—580', '[570,580)', 570, 1, 580, 0, '');
A23: 1001056 | B23: 1 | C23: 200 | D23: 560—570 | E23: [560,570) | F23: 560 | G23: 1 | H23: 570 | I23: 0 | K23: INSERT INTO exam_score_range(id, `type`, `sequence`, `name`, `nick_name`, `begin_value`, `begin_include`, `end_value`, `end_include`, remark) VALUES(1001056, 1, 200, '560—570', '[560,570)', 560, 1, 570, 0, '');
A24: 1001055 | B24: 1 | C24: 210 | D24: 550—560 | E24: [550,560) | F24: 550 | G24: 1 | H24: 560 | I24: 0 | K24: INSERT INTO exam_score_range(id, `type`, `sequence`, `name`, `nick_name`, `begin_value`, `begin_include`, `end_value`, `end_include`, remark) VALUES(1001055, 1, 210, '550—560', '[550,560)', 550, 1, 560, 0, '');
A25: 1001054 | B25: 1 | C25: 220 | D25: 540—550 | E25: [540,550) | F25: 540 | G25: 1 | H25: 550 | I25: 0 | K25: INSERT INTO exam_score_range(id, `type`, `sequence`, `name`, `nick_name`, `begin_value`, `begin_include`, `end_value`, `end_include`, remark) VALUES(1001054, 1, 220, '540—550', '[540,550)', 540, 1, 550, 0, '');
A26: 1001053 | B26: 1 | C26: 230 | D26: 530—540 | E26: [530,540) | F26: 530 | G26: 1 | H26: 540 | I26: 0 | K26: INSERT INTO exam_score_range(id, `type`, `sequence`, `name`, `nick_name`, `begin_value`, `begin_include`, `end_value`, `end_include`, remark) VALUES(1001053, 1, 230, '530—540', '[530,540)', 530, 1, 540, 0, '');
A27: 1001052 | B27: 1 | C27: 240 | D27: 520—530 | E27: [520,530) | F27: 520 | G27: 1 | H27: 530 | I27: 0 | K27: INSERT INTO exam_score_range(id, `type`, `sequence`, `name`, `nick_name`, `begin_value`, `begin_include`, `end_value`, `end_include`, remark) VALUES(1001052, 1, 240, '520—530', '[520,530)', 520, 1, 530, 0, '');
A28: 1001051 | B28: 1 | C28: 250 | D28: 510—520 | E28: [510,520) | F28: 510 | G28: 1 | H28: 520 | I28: 0 | K28: INSERT INTO exam_score_range(id, `type`, `sequence`, `name`, `nick_name`, `begin_value`, `begin_include`, `end_value`, `end_include`, remark) VALUES(1001051, 1, 250, '510—520', '[510,520)', 510, 1, 520, 0, '');
A29: 1001050 | B29: 1 | C29: 260 | D29: 500—510 | E29: [500,510) | F29: 500 | G29: 1 | H29: 510 | I29: 0 | K29: INSERT INTO exam_score_range(id, `type`, `sequence`, `name`, `nick_name`, `begin_value`, `begin_include`, `end_value`, `end_include`, remark) VALUES(1001050, 1, 260, '500—510', '[500,510)', 500, 1, 510, 0, '');
A30: 1001049 | B30: 1 | C30: 270 | D30: 490—500 | E30: [490,500) | F30: 490 | G30: 1 | H30: 500 | I30: 0 | K30: INSERT INTO exam_score_range(id, `type`, `sequence`, `name`, `nick_name`, `begin_value`, `begin_include`, `end_value`, `end_include`, remark) VALUES(1001049, 1, 270, '490—500', '[490,500)', 490, 1, 500, 0, '');
A31: 1001048 | B31: 1 | C31: 280 | D31: 480—490 | E31: [480,490) | F31: 480 | G31: 1 | H31: 490 | I31: 0 | K31: INSERT INTO exam_score_range(id, `type`, `sequence`, `name`, `nick_name`, `begin_value`, `begin_include`, `end_value`, `end_include`, remark) VALUES(1001048, 1, 280, '480—490', '[480,490)', 480, 1, 490, 0, '');
A32: 1001047 | B32: 1 | C32: 290 | D32: 470—480 | E32: [470,480) | F32: 470 | G32: 1 | H32: 480 | I32: 0 | K32: INSERT INTO exam_score_range(id, `type`, `sequence`, `name`, `nick_name`, `begin_value`, `begin_include`, `end_value`, `end_include`, remark) VALUES(1001047, 1, 290, '470—480', '[470,480)', 470, 1, 480, 0, '');
A33: 1001046 | B33: 1 | C33: 300 | D33: 460—470 | E33: [460,470) | F33: 460 | G33: 1 | H33: 470 | I33: 0 | K33: INSERT INTO exam_score_range(id, `type`, `sequence`, `name`, `nick_name`, `begin_value`, `begin_include`, `end_value`, `end_include`, remark) VALUES(1001046, 1, 300, '460—470', '[460,470)', 460, 1, 470, 0, '');
A34: 1001045 | B34: 1 | C34: 310 | D34: 450—460 | E34: [450,460) | F34: 450 | G34: 1 | H34: 460 | I34: 0 | K34: INSERT INTO exam_score_range(id, `type`, `sequence`, `name`, `nick_name`, `begin_value`, `begin_include`, `end_value`, `end_include`, remark) VALUES(1001045, 1, 310, '450—460', '[450,460)', 450, 1, 460, 0, '');
A35: 1001044 | B35: 1 | C35: 320 | D35: 440—450 | E35: [440,450) | F35: 440 | G35: 1 | H35: 450 | I35: 0 | K35: INSERT INTO exam_score_range(id, `type`, `sequence`, `name`, `nick_name`, `begin_value`, `begin_include`, `end_value`, `end_include`, remark) VALUES(1001044, 1, 320, '440—450', '[440,450)', 440, 1, 450, 0, '');
A36: 1001043 | B36: 1 | C36: 330 | D36: 430—440 | E36: [430,440) | F36: 430 | G36: 1 | H36: 440 | I36: 0 | K36: INSERT INTO exam_score_range(id, `type`, `sequence`, `name`, `nick_name`, `begin_value`, `begin_include`, `end_value`, `end_include`, remark) VALUES(1001043, 1, 330, '430—440', '[430,440)', 430, 1, 440, 0, '');
A37: =1*1000000+B37*1000+F37/10 -> 1001042 | B37: 1 | C37: 340 | D37: 420—430 | E37: [420,430) | F37: 420 | G37: 1 | H37: 430 | I37: 0 | K37: INSERT INTO exam_score_range(id, `type`, `sequence`, `name`, `nick_name`, `begin_value`, `begin_include`, `end_value`, `end_include`, remark) VALUES(1001042, 1, 340, '420—430', '[420,430)', 420, 1, 430, 0, '');
A38: 1001041 | B38: 1 | C38: 350 | D38: =F38&"—"&H38 -> 410—420 | E38: ="["&F38&","&H38&")" -> [410,420) | F38: 410 | G38: 1 | H38: 420 | I38: 0 | K38: ="INSERT INTO exam_score_range(id, `type`, `sequence`, `name`, `nick_name`, `begin_value`, `begin_include`, `end_value`, `end_include`, remark) VALUES("&A38&", "&B38&", "&C38&", '"&D38&"', '"&E38&"', "&F38&", "&G38&", "&H38&", "&I38&", '"&J38&"');" -> INSERT INTO exam_score_range(id, `type`, `sequence`, `name`, `nick_name`, `begin_value`, `begin_include`, `end_value`, `end_include`, remark) VALUES(1001041, 1, 350, '410—420', '[410,420)', 410, 1, 420, 0, '');
A39: 1001040 | B39: 1 | C39: 360 | D39: 400—410 | E39: [400,410) | F39: 400 | G39: 1 | H39: 410 | I39: 0 | K39: INSERT INTO exam_score_range(id, `type`, `sequence`, `name`, `nick_name`, `begin_value`, `begin_include`, `end_value`, `end_include`, remark) VALUES(1001040, 1, 360, '400—410', '[400,410)', 400, 1, 410, 0, '');
A40: 1001039 | B40: 1 | C40: 370 | D40: 390—400 | E40: [390,400) | F40: 390 | G40: 1 | H40: 400 | I40: 0 | K40: INSERT INTO exam_score_range(id, `type`, `sequence`, `name`, `nick_name`, `begin_value`, `begin_include`, `end_value`, `end_include`, remark) VALUES(1001039, 1, 370, '390—400', '[390,400)', 390, 1, 400, 0, '');
A41: 1001038 | B41: 1 | C41: 380 | D41: 380—390 | E41: [380,390) | F41: 380 | G41: 1 | H41: 390 | I41: 0 | K41: INSERT INTO exam_score_range(id, `type`, `sequence`, `name`, `nick_name`, `begin_value`, `begin_include`, `end_value`, `end_include`, remark) VALUES(1001038, 1, 380, '380—390', '[380,390)', 380, 1, 390, 0, '');
A42: 1001037 | B42: 1 | C42: 390 | D42: 370—380 | E42: [370,380) | F42: 370 | G42: 1 | H42: 380 | I42: 0 | K42: INSERT INTO exam_score_range(id, `type`, `sequence`, `name`, `nick_name`, `begin_value`, `begin_include`, `end_value`, `end_include`, remark) VALUES(1001037, 1, 390, '370—380', '[370,380)', 370, 1, 380, 0, '');
A43: 1001036 | B43: 1 | C43: 400 | D43: 360—370 | E43: [360,370) | F43: 360 | G43: 1 | H43: 370 | I43: 0 | K43: INSERT INTO exam_score_range(id, `type`, `sequence`, `name`, `nick_name`, `begin_value`, `begin_include`, `end_value`, `end_include`, remark) VALUES(1001036, 1, 400, '360—370', '[360,370)', 360, 1, 370, 0, '');
A44: 1001035 | B44: 1 | C44: 410 | D44: 350—360 | E44: [350,360) | F44: 350 | G44: 1 | H44: 360 | I44: 0 | K44: INSERT INTO exam_score_range(id, `type`, `sequence`, `name`, `nick_name`, `begin_value`, `begin_include`, `end_value`, `end_include`, remark) VALUES(1001035, 1, 410, '350—360', '[350,360)', 350, 1, 360, 0, '');
A45: 1001034 | B45: 1 | C45: 420 | D45: 340—350 | E45: [340,350) | F45: 340 | G45: 1 | H45: 350 | I45: 0 | K45: INSERT INTO exam_score_range(id, `type`, `sequence`, `name`, `nick_name`, `begin_value`, `begin_include`, `end_value`, `end_include`, remark) VALUES(1001034, 1, 420, '340—350', '[340,350)', 340, 1, 350, 0, '');
A46: 1001033 | B46: 1 | C46: 430 | D46: 330—340 | E46: [330,340) | F46: 330 | G46: 1 | H46: 340 | I46: 0 | K46: INSERT INTO exam_score_range(id, `type`, `sequence`, `name`, `nick_name`, `begin_value`, `begin_include`, `end_value`, `end_include`, remark) VALUES(1001033, 1, 430, '330—340', '[330,340)', 330, 1, 340, 0, '');
A47: 1001032 | B47: 1 | C47: 440 | D47: 320—330 | E47: [320,330) | F47: 320 | G47: 1 | H47: 330 | I47: 0 | K47: INSERT INTO exam_score_range(id, `type`, `sequence`, `name`, `nick_name`, `begin_value`, `begin_include`, `end_value`, `end_include`, remark) VALUES(1001032, 1, 440, '320—330', '[320,330)', 320, 1, 330, 0, '');
A48: 1001031 | B48: 1 | C48: 450 | D48: 310—320 | E48: [310,320) | F48: 310 | G48: 1 | H48: 320 | I48: 0 | K48: INSERT INTO exam_score_range(id, `type`, `sequence`, `name`, `nick_name`, `begin_value`, `begin_include`, `end_value`, `end_include`, remark) VALUES(1001031, 1, 450, '310—320', '[310,320)', 310, 1, 320, 0, '');
A49: 1001030 | B49: 1 | C49: 460 | D49: 300—310 | E49: [300,310) | F49: 300 | G49: 1 | H49: 310 | I49: 0 | K49: INSERT INTO exam_score_range(id, `type`, `sequence`, `name`, `nick_name`, `begin_value`, `begin_include`, `end_value`, `end_include`, remark) VALUES(1001030, 1, 460, '300—310', '[300,310)', 300, 1, 310, 0, '');
A50: 1001029 | B50: 1 | C50: 470 | D50: 290—300 | E50: [290,300) | F50: 290 | G50: 1 | H50: 300 | I50: 0 | K50: INSERT INTO exam_score_range(id, `type`, `sequence`, `name`, `nick_name`, `begin_value`, `begin_include`, `end_value`, `end_include`, remark) VALUES(1001029, 1, 470, '290—300', '[290,300)', 290, 1, 300, 0, '');
A51: 1001028 | B51: 1 | C51: 480 | D51: 280—290 | E51: [280,290) | F51: 280 | G51: 1 | H51: 290 | I51: 0 | K51: INSERT INTO exam_score_range(id, `type`, `sequence`, `name`, `nick_name`, `begin_value`, `begin_include`, `end_value`, `end_include`, remark) VALUES(1001028, 1, 480, '280—290', '[280,290)', 280, 1, 290, 0, '');
A52: 1001027 | B52: 1 | C52: 490 | D52: 270—280 | E52: [270,280) | F52: 270 | G52: 1 | H52: 280 | I52: 0 | K52: INSERT INTO exam_score_range(id, `type`, `sequence`, `name`, `nick_name`, `begin_value`, `begin_include`, `end_value`, `end_include`, remark) VALUES(1001027, 1, 490, '270—280', '[270,280)', 270, 1, 280, 0, '');
A53: 1001026 | B53: 1 | C53: 500 | D53: 260—270 | E53: [260,270) | F53: 260 | G53: 1 | H53: 270 | I53: 0 | K53: INSERT INTO exam_score_range(id, `type`, `sequence`, `name`, `nick_name`, `begin_value`, `begin_include`, `end_value`, `end_include`, remark) VALUES(1001026, 1, 500, '260—270', '[260,270)', 260, 1, 270, 0, '');
A54: 1001025 | B54: 1 | C54: 510 | D54: 250—260 | E54: [250,260) | F54: 250 | G54: 1 | H54: 260 | I54: 0 | K54: INSERT INTO exam_score_range(id, `type`, `sequence`, `name`, `nick_name`, `begin_value`, `begin_include`, `end_value`, `end_include`, remark) VALUES(1001025, 1, 510, '250—260', '[250,260)', 250, 1, 260, 0, '');
A55: 1001024 | B55: 1 | C55: 520 | D55: 240—250 | E55: [240,250) | F55: 240 | G55: 1 | H55: 250 | I55: 0 | K55: INSERT INTO exam_score_range(id, `type`, `sequence`, `name`, `nick_name`, `begin_value`, `begin_include`, `end_value`, `end_include`, remark) VALUES(1001024, 1, 520, '240—250', '[240,250)', 240, 1, 250, 0, '');
A56: 1001023 | B56: 1 | C56: 530 | D56: 230—240 | E56: [230,240) | F56: 230 | G56: 1 | H56: 240 | I56: 0 | K56: INSERT INTO exam_score_range(id, `type`, `sequence`, `name`, `nick_name`, `begin_value`, `begin_include`, `end_value`, `end_include`, remark) VALUES(1001023, 1, 530, '230—240', '[230,240)', 230, 1, 240, 0, '');
A57: 1001022 | B57: 1 | C57: 540 | D57: 220—230 | E57: [220,230) | F57: 220 | G57: 1 | H57: 230 | I57: 0 | K57: INSERT INTO exam_score_range(id, `type`, `sequence`, `name`, `nick_name`, `begin_value`, `begin_include`, `end_value`, `end_include`, remark) VALUES(1001022, 1, 540, '220—230', '[220,230)', 220, 1, 230, 0, '');
A58: 1001021 | B58: 1 | C58: 550 | D58: 210—220 | E58: [210,220) | F58: 210 | G58: 1 | H58: 220 | I58: 0 | K58: INSERT INTO exam_score_range(id, `type`, `sequence`, `name`, `nick_name`, `begin_value`, `begin_include`, `end_value`, `end_include`, remark) VALUES(1001021, 1, 550, '210—220', '[210,220)', 210, 1, 220, 0, '');
A59: 1001020 | B59: 1 | C59: 560 | D59: 200—210 | E59: [200,210) | F59: 200 | G59: 1 | H59: 210 | I59: 0 | K59: INSERT INTO exam_score_range(id, `type`, `sequence`, `name`, `nick_name`, `begin_value`, `begin_include`, `end_value`, `end_include`, remark) VALUES(1001020, 1, 560, '200—210', '[200,210)', 200, 1, 210, 0, '');
A60: 1001000 | B60: 1 | C60: 570 | D60: 0—200 | E60: [0,200) | F60: 0 | G60: 1 | H60: 200 | I60: 0 | K60: INSERT INTO exam_score_range(id, `type`, `sequence`, `name`, `nick_name`, `begin_value`, `begin_include`, `end_value`, `end_include`, remark) VALUES(1001000, 1, 570, '0—200', '[0,200)', 0, 1, 200, 0, '');
A62: =1*1000000+B62*1000+F62/5 -> 1002030 | B62: 2 | C62: 10 | D62: 150 | E62: 150 | F62: 150 | G62: 1 | H62: 150 | I62: 1 | K62: ="INSERT INTO exam_score_range(id, `type`, `sequence`, `name`, `nick_name`, `begin_value`, `begin_include`, `end_value`, `end_include`, remark) VALUES("&A62&", "&B62&", "&C62&", '"&D62&"', '"&E62&"', "&F62&", "&G62&", "&H62&", "&I62&", '"&J62&"');" -> INSERT INTO exam_score_range(id, `type`, `sequence`, `name`, `nick_name`, `begin_value`, `begin_include`, `end_value`, `end_include`, remark) VALUES(1002030, 2, 10, '150', '150', 150, 1, 150, 1, '');
A63: =1*1000000+B63*1000+F63/5 -> 1002029 | B63: 2 | C63: 20 | D63: =F63&"—"&H63 -> 145—150 | E63: ="["&F63&","&H63&")" -> [145,150) | F63: 145 | G63: 1 | H63: 150 | I63: 0 | K63: ="INSERT INTO exam_score_range(id, `type`, `sequence`, `name`, `nick_name`, `begin_value`, `begin_include`, `end_value`, `end_include`, remark) VALUES("&A63&", "&B63&", "&C63&", '"&D63&"', '"&E63&"', "&F63&", "&G63&", "&H63&", "&I63&", '"&J63&"');" -> INSERT INTO exam_score_range(id, `type`, `sequence`, `name`, `nick_name`, `begin_value`, `begin_include`, `end_value`, `end_include`, remark) VALUES(1002029, 2, 20, '145—150', '[145,150)', 145, 1, 150, 0, '');
A64: 1002028 | B64: 2 | C64: 30 | D64: =F64&"—"&H64 -> 140—145 | E64: ="["&F64&","&H64&")" -> [140,145) | F64: 140 | G64: 1 | H64: 145 | I64: 0 | K64: ="INSERT INTO exam_score_range(id, `type`, `sequence`, `name`, `nick_name`, `begin_value`, `begin_include`, `end_value`, `end_include`, remark) VALUES("&A64&", "&B64&", "&C64&", '"&D64&"', '"&E64&"', "&F64&", "&G64&", "&H64&", "&I64&", '"&J64&"');" -> INSERT INTO exam_score_range(id, `type`, `sequence`, `name`, `nick_name`, `begin_value`, `begin_include`, `end_value`, `end_include`, remark) VALUES(1002028, 2, 30, '140—145', '[140,145)', 140, 1, 145, 0, '');
A65: 1002027 | B65: 2 | C65: 40 | D65: 135—140 | E65: [135,140) | F65: 135 | G65: 1 | H65: 140 | I65: 0 | K65: INSERT INTO exam_score_range(id, `type`, `sequence`, `name`, `nick_name`, `begin_value`, `begin_include`, `end_value`, `end_include`, remark) VALUES(1002027, 2, 40, '135—140', '[135,140)', 135, 1, 140, 0, '');
A66: 1002026 | B66: 2 | C66: 50 | D66: 130—135 | E66: [130,135) | F66: 130 | G66: 1 | H66: 135 | I66: 0 | K66: INSERT INTO exam_score_range(id, `type`, `sequence`, `name`, `nick_name`, `begin_value`, `begin_include`, `end_value`, `end_include`, remark) VALUES(1002026, 2, 50, '130—135', '[130,135)', 130, 1, 135, 0, '');
A67: 1002025 | B67: 2 | C67: 60 | D67: 125—130 | E67: [125,130) | F67: 125 | G67: 1 | H67: 130 | I67: 0 | K67: INSERT INTO exam_score_range(id, `type`, `sequence`, `name`, `nick_name`, `begin_value`, `begin_include`, `end_value`, `end_include`, remark) VALUES(1002025, 2, 60, '125—130', '[125,130)', 125, 1, 130, 0, '');
A68: 1002024 | B68: 2 | C68: 70 | D68: 120—125 | E68: [120,125) | F68: 120 | G68: 1 | H68: 125 | I68: 0 | K68: INSERT INTO exam_score_range(id, `type`, `sequence`, `name`, `nick_name`, `begin_value`, `begin_include`, `end_value`, `end_include`, remark) VALUES(1002024, 2, 70, '120—125', '[120,125)', 120, 1, 125, 0, '');
A69: 1002023 | B69: 2 | C69: 80 | D69: 115—120 | E69: [115,120) | F69: 115 | G69: 1 | H69: 120 | I69: 0 | K69: INSERT INTO exam_score_range(id, `type`, `sequence`, `name`, `nick_name`, `begin_value`, `begin_include`, `end_value`, `end_include`, remark) VALUES(1002023, 2, 80, '115—120', '[115,120)', 115, 1, 120, 0, '');
A70: 1002022 | B70: 2 | C70: 90 | D70: 110—115 | E70: [110,115) | F70: 110 | G70: 1 | H70: 115 | I70: 0 | K70: INSERT INTO exam_score_range(id, `type`, `sequence`, `name`, `nick_name`, `begin_value`, `begin_include`, `end_value`, `end_include`, remark) VALUES(1002022, 2, 90, '110—115', '[110,115)', 110, 1, 115, 0, '');
A71: 1002021 | B71: 2 | C71: 100 | D71: 105—110 | E71: [105,110) | F71: 105 | G71: 1 | H71: 110 | I71: 0 | K71: INSERT INTO exam_score_range(id, `type`, `sequence`, `name`, `nick_name`, `begin_value`, `begin_include`, `end_value`, `end_include`, remark) VALUES(1002021, 2, 100, '105—110', '[105,110)', 105, 1, 110, 0, '');
A72: 1002020 | B72: 2 | C72: 110 | D72: 100—105 | E72: [100,105) | F72: 100 | G72: 1 | H72: 105 | I72: 0 | K72: INSERT INTO exam_score_range(id, `type`, `sequence`, `name`, `nick_name`, `begin_value`, `begin_include`, `end_value`, `end_include`, remark) VALUES(1002020, 2, 110, '100—105', '[100,105)', 100, 1, 105, 0, '');
A73: 1002019 | B73: 2 | C73: 120 | D73: 95—100 | E73: [95,100) | F73: 95 | G73: 1 | H73: 100 | I73: 0 | K73: INSERT INTO exam_score_range(id, `type`, `sequence`, `name`, `nick_name`, `begin_value`, `begin_include`, `end_value`, `end_include`, remark) VALUES(1002019, 2, 120, '95—100', '[95,100)', 95, 1, 100, 0, '');
A74: 1002018 | B74: 2 | C74: 130 | D74: 90—95 | E74: [90,95) | F74: 90 | G74: 1 | H74: 95 | I74: 0 | K74: INSERT INTO exam_score_range(id, `type`, `sequence`, `name`, `nick_name`, `begin_value`, `begin_include`, `end_value`, `end_include`, remark) VALUES(1002018, 2, 130, '90—95', '[90,95)', 90, 1, 95, 0, '');
A75: 1002017 | B75: 2 | C75: 140 | D75: 85—90 | E75: [85,90) | F75: 85 | G75: 1 | H75: 90 | I75: 0 | K75: INSERT INTO exam_score_range(id, `type`, `sequence`, `name`, `nick_name`, `begin_value`, `begin_include`, `end_value`, `end_include`, remark) VALUES(1002017, 2, 140, '85—90', '[85,90)', 85, 1, 90, 0, '');
A76: 1002016 | B76: 2 | C76: 150 | D76: 80—85 | E76: [80,85) | F76: 80 | G76: 1 | H76: 85 | I76: 0 | K76: INSERT INTO exam_score_range(id, `type`, `sequence`, `name`, `nick_name`, `begin_value`, `begin_include`, `end_value`, `end_include`, remark) VALUES(1002016, 2, 150, '80—85', '[80,85)', 80, 1, 85, 0, '');
A77: 1002015 | B77: 2 | C77: 160 | D77: 75—80 | E77: [75,80) | F77: 75 | G77: 1 | H77: 80 | I77: 0 | K77: INSERT INTO exam_score_range(id, `type`, `sequence`, `name`, `nick_name`, `begin_value`, `begin_include`, `end_value`, `end_include`, remark) VALUES(1002015, 2, 160, '75—80', '[75,80)', 75, 1, 80, 0, '');
A78: 1002014 | B78: 2 | C78: 170 | D78: 70—75 | E78: [70,75) | F78: 70 | G78: 1 | H78: 75 | I78: 0 | K78: INSERT INTO exam_score_range(id, `type`, `sequence`, `name`, `nick_name`, `begin_value`, `begin_include`, `end_value`, `end_include`, remark) VALUES(1002014, 2, 170, '70—75', '[70,75)', 70, 1, 75, 0, '');
A79: 1002013 | B79: 2 | C79: 180 | D79: 65—70 | E79: [65,70) | F79: 65 | G79: 1 | H79: 70 | I79: 0 | K79: INSERT INTO exam_score_range(id, `type`, `sequence`, `name`, `nick_name`, `begin_value`, `begin_include`, `end_value`, `end_include`, remark) VALUES(1002013, 2, 180, '65—70', '[65,70)', 65, 1, 70, 0, '');
A80: 1002012 | B80: 2 | C80: 190 | D80: 60—65 | E80: [60,65) | F80: 60 | G80: 1 | H80: 65 | I80: 0 | K80: INSERT INTO exam_score_range(id, `type`, `sequence`, `name`, `nick_name`, `begin_value`, `begin_include`, `end_value`, `end_include`, remark) VALUES(1002012, 2, 190, '60—65', '[60,65)', 60, 1, 65, 0, '');
A81: 1002011 | B81: 2 | C81: 200 | D81: 55—60 | E81: [55,60) | F81: 55 | G81: 1 | H81: 60 | I81: 0 | K81: INSERT INTO exam_score_range(id, `type`, `sequence`, `name`, `nick_name`, `begin_value`, `begin_include`, `end_value`, `end_include`, remark) VALUES(1002011, 2, 200, '55—60', '[55,60)', 55, 1, 60, 0, '');
A82: 1002010 | B82: 2 | C82: 210 | D82: 50—55 | E82: [50,55) | F82: 50 | G82: 1 | H82: 55 | I82: 0 | K82: INSERT INTO exam_score_range(id, `type`, `sequence`, `name`, `nick_name`, `begin_value`, `begin_include`, `end_value`, `end_include`, remark) VALUES(1002010, 2, 210, '50—55', '[50,55)', 50, 1, 55, 0, '');
A83: 1002009 | B83: 2 | C83: 220 | D83: 45—50 | E83: [45,50) | F83: 45 | G83: 1 | H83: 50 | I83: 0 | K83: INSERT INTO exam_score_range(id, `type`, `sequence`, `name`, `nick_name`, `begin_value`, `begin_include`, `end_value`, `end_include`, remark) VALUES(1002009, 2, 220, '45—50', '[45,50)', 45, 1, 50, 0, '');
A84: 1002008 | B84: 2 | C84: 230 | D84: 40—45 | E84: [40,45) | F84: 40 | G84: 1 | H84: 45 | I84: 0 | K84: INSERT INTO exam_score_range(id, `type`, `sequence`, `name`, `nick_name`, `begin_value`, `begin_include`, `end_value`, `end_include`, remark) VALUES(1002008, 2, 230, '40—45', '[40,45)', 40, 1, 45, 0, '');
A85: 1002007 | B85: 2 | C85: 240 | D85: 35—40 | E85: [35,40) | F85: 35 | G85: 1 | H85: 40 | I85: 0 | K85: INSERT INTO exam_score_range(id, `type`, `sequence`, `name`, `nick_name`, `begin_value`, `begin_include`, `end_value`, `end_include`, remark) VALUES(1002007, 2, 240, '35—40', '[35,40)', 35, 1, 40, 0, '');
A86: 1002006 | B86: 2 | C86: 250 | D86: 30—35 | E86: [30,35) | F86: 30 | G86: 1 | H86: 35 | I86: 0 | K86: INSERT INTO exam_score_range(id, `type`, `sequence`, `name`, `nick_name`, `begin_value`, `begin_include`, `end_value`, `end_include`, remark) VALUES(1002006, 2, 250, '30—35', '[30,35)', 30, 1, 35, 0, '');
A87: 1002005 | B87: 2 | C87: 260 | D87: 25—30 | E87: [25,30) | F87: 25 | G87: 1 | H87: 30 | I87: 0 | K87: INSERT INTO exam_score_range(id, `type`, `sequence`, `name`, `nick_name`, `begin_value`, `begin_include`, `end_value`, `end_include`, remark) VALUES(1002005, 2, 260, '25—30', '[25,30)', 25, 1, 30, 0, '');
A88: 1002004 | B88: 2 | C88: 270 | D88: 20—25 | E88: [20,25) | F88: 20 | G88: 1 | H88: 25 | I88: 0 | K88: INSERT INTO exam_score_range(id, `type`, `sequence`, `name`, `nick_name`, `begin_value`, `begin_include`, `end_value`, `end_include`, remark) VALUES(1002004, 2, 270, '20—25', '[20,25)', 20, 1, 25, 0, '');
A89: 1002003 | B89: 2 | C89: 280 | D89: 15—20 | E89: [15,20) | F89: 15 | G89: 1 | H89: 20 | I89: 0 | K89: INSERT INTO exam_score_range(id, `type`, `sequence`, `name`, `nick_name`, `begin_value`, `begin_include`, `end_value`, `end_include`, remark) VALUES(1002003, 2, 280, '15—20', '[15,20)', 15, 1, 20, 0, '');
A90: 1002002 | B90: 2 | C90: 290 | D90: 10—15 | E90: [10,15) | F90: 10 | G90: 1 | H90: 15 | I90: 0 | K90: INSERT INTO exam_score_range(id, `type`, `sequence`, `name`, `nick_name`, `begin_value`, `begin_include`, `end_value`, `end_include`, remark) VALUES(1002002, 2, 290, '10—15', '[10,15)', 10, 1, 15, 0, '');
A91: 1002001 | B91: 2 | C91: 300 | D91: 5—10 | E91: [5,10) | F91: 5 | G91: 1 | H91: 10 | I91: 0 | K91: INSERT INTO exam_score_range(id, `type`, `sequence`, `name`, `nick_name`, `begin_value`, `begin_include`, `end_value`, `end_include`, remark) VALUES(1002001, 2, 300, '5—10', '[5,10)', 5, 1, 10, 0, '');
A92: 1002000 | B92: 2 | C92: 310 | D92: 0—5 | E92: [0,5) | F92: 0 | G92: 1 | H92: 5 | I92: 0 | K92: INSERT INTO exam_score_range(id, `type`, `sequence`, `name`, `nick_name`, `begin_value`, `begin_include`, `end_value`, `end_include`, remark) VALUES(1002000, 2, 310, '0—5', '[0,5)', 0, 1, 5, 0, '');
A94: =1*1000000+B94*1000+F94/5 -> 1003020 | B94: 3 | C94: 10 | D94: 100 | E94: 100 | F94: 100 | G94: 1 | H94: 100 | I94: 1 | K94: ="INSERT INTO exam_score_range(id, `type`, `sequence`, `name`, `nick_name`, `begin_value`, `begin_include`, `end_value`, `end_include`, remark) VALUES("&A94&", "&B94&", "&C94&", '"&D94&"', '"&E94&"', "&F94&", "&G94&", "&H94&", "&I94&", '"&J94&"');" -> INSERT INTO exam_score_range(id, `type`, `sequence`, `name`, `nick_name`, `begin_value`, `begin_include`, `end_value`, `end_include`, remark) VALUES(1003020, 3, 10, '100', '100', 100, 1, 100, 1, '');
A95: =1*1000000+B95*1000+F95/5 -> 1003019 | B95: 3 | C95: 20 | D95: =F95&"—"&H95 -> 95—100 | E95: ="["&F95&","&H95&")" -> [95,100) | F95: 95 | G95: 1 | H95: 100 | I95: 0 | K95: ="INSERT INTO exam_score_range(id, `type`, `sequence`, `name`, `nick_name`, `begin_value`, `begin_include`, `end_value`, `end_include`, remark) VALUES("&A95&", "&B95&", "&C95&", '"&D95&"', '"&E95&"', "&F95&", "&G95&", "&H95&", "&I95&", '"&J95&"');" -> INSERT INTO exam_score_range(id, `type`, `sequence`, `name`, `nick_name`, `begin_value`, `begin_include`, `end_value`, `end_include`, remark) VALUES(1003019, 3, 20, '95—100', '[95,100)', 95, 1, 100, 0, '');
A96: =1*1000000+B96*1000+F96/5 -> 1003018 | B96: 3 | C96: 30 | D96: =F96&"—"&H96 -> 90—95 | E96: ="["&F96&","&H96&")" -> [90,95) | F96: 90 | G96: 1 | H96: 95 | I96: 0 | K96: ="INSERT INTO exam_score_range(id, `type`, `sequence`, `name`, `nick_name`, `begin_value`, `begin_include`, `end_value`, `end_include`, remark) VALUES("&A96&", "&B96&", "&C96&", '"&D96&"', '"&E96&"', "&F96&", "&G96&", "&H96&", "&I96&", '"&J96&"');" -> INSERT INTO exam_score_range(id, `type`, `sequence`, `name`, `nick_name`, `begin_value`, `begin_include`, `end_value`, `end_include`, remark) VALUES(1003018, 3, 30, '90—95', '[90,95)', 90, 1, 95, 0, '');
A97: 1003017 | B97: 3 | C97: 40 | D97: 85—90 | E97: [85,90) | F97: 85 | G97: 1 | H97: 90 | I97: 0 | K97: INSERT INTO exam_score_range(id, `type`, `sequence`, `name`, `nick_name`, `begin_value`, `begin_include`, `end_value`, `end_include`, remark) VALUES(1003017, 3, 40, '85—90', '[85,90)', 85, 1, 90, 0, '');
A98: 1003016 | B98: 3 | C98: 50 | D98: 80—85 | E98: [80,85) | F98: 80 | G98: 1 | H98: 85 | I98: 0 | K98: INSERT INTO exam_score_range(id, `type`, `sequence`, `name`, `nick_name`, `begin_value`, `begin_include`, `end_value`, `end_include`, remark) VALUES(1003016, 3, 50, '80—85', '[80,85)', 80, 1, 85, 0, '');
A99: 1003015 | B99: 3 | C99: 60 | D99: 75—80 | E99: [75,80) | F99: 75 | G99: 1 | H99: 80 | I99: 0 | K99: INSERT INTO exam_score_range(id, `type`, `sequence`, `name`, `nick_name`, `begin_value`, `begin_include`, `end_value`, `end_include`, remark) VALUES(1003015, 3, 60, '75—80', '[75,80)', 75, 1, 80, 0, '');
A100: 1003014 | B100: 3 | C100: 70 | D100: 70—75 | E100: [70,75) | F100: 70 | G100: 1 | H100: 75 | I100: 0 | K100: INSERT INTO exam_score_range(id, `type`, `sequence`, `name`, `nick_name`, `begin_value`, `begin_include`, `end_value`, `end_include`, remark) VALUES(1003014, 3, 70, '70—75', '[70,75)', 70, 1, 75, 0, '');
A101: 1003013 | B101: 3 | C101: 80 | D101: 65—70 | E101: [65,70) | F101: 65 | G101: 1 | H101: 70 | I101: 0 | K101: INSERT INTO exam_score_range(id, `type`, `sequence`, `name`, `nick_name`, `begin_value`, `begin_include`, `end_value`, `end_include`, remark) VALUES(1003013, 3, 80, '65—70', '[65,70)', 65, 1, 70, 0, '');
A102: 1003012 | B102: 3 | C102: 90 | D102: 60—65 | E102: [60,65) | F102: 60 | G102: 1 | H102: 65 | I102: 0 | K102: INSERT INTO exam_score_range(id, `type`, `sequence`, `name`, `nick_name`, `begin_value`, `begin_include`, `end_value`, `end_include`, remark) VALUES(1003012, 3, 90, '60—65', '[60,65)', 60, 1, 65, 0, '');
A103: 1003011 | B103: 3 | C103: 100 | D103: 55—60 | E103: [55,60) | F103: 55 | G103: 1 | H103: 60 | I103: 0 | K103: INSERT INTO exam_score_range(id, `type`, `sequence`, `name`, `nick_name`, `begin_value`, `begin_include`, `end_value`, `end_include`, remark) VALUES(1003011, 3, 100, '55—60', '[55,60)', 55, 1, 60, 0, '');
A104: 1003010 | B104: 3 | C104: 110 | D104: 50—55 | E104: [50,55) | F104: 50 | G104: 1 | H104: 55 | I104: 0 | K104: INSERT INTO exam_score_range(id, `type`, `sequence`, `name`, `nick_name`, `begin_value`, `begin_include`, `end_value`, `end_include`, remark) VALUES(1003010, 3, 110, '50—55', '[50,55)', 50, 1, 55, 0, '');
A105: 1003009 | B105: 3 | C105: 120 | D105: 45—50 | E105: [45,50) | F105: 45 | G105: 1 | H105: 50 | I105: 0 | K105: INSERT INTO exam_score_range(id, `type`, `sequence`, `name`, `nick_name`, `begin_value`, `begin_include`, `end_value`, `end_include`, remark) VALUES(1003009, 3, 120, '45—50', '[45,50)', 45, 1, 50, 0, '');
A106: 1003008 | B106: 3 | C106: 130 | D106: 40—45 | E106: [40,45) | F106: 40 | G106: 1 | H106: 45 | I106: 0 | K106: INSERT INTO exam_score_range(id, `type`, `sequence`, `name`, `nick_name`, `begin_value`, `begin_include`, `end_value`, `end_include`, remark) VALUES(1003008, 3, 130, '40—45', '[40,45)', 40, 1, 45, 0, '');
A107: 1003007 | B107: 3 | C107: 140 | D107: 35—40 | E107: [35,40) | F107: 35 | G107: 1 | H107: 40 | I107: 0 | K107: INSERT INTO exam_score_range(id, `type`, `sequence`, `name`, `nick_name`, `begin_value`, `begin_include`, `end_value`, `end_include`, remark) VALUES(1003007, 3, 140, '35—40', '[35,40)', 35, 1, 40, 0, '');
A108: 1003006 | B108: 3 | C108: 150 | D108: 30—35 | E108: [30,35) | F108: 30 | G108: 1 | H108: 35 | I108: 0 | K108: INSERT INTO exam_score_range(id, `type`, `sequence`, `name`, `nick_name`, `begin_value`, `begin_include`, `end_value`, `end_include`, remark) VALUES(1003006, 3, 150, '30—35', '[30,35)', 30, 1, 35, 0, '');
A109: 1003005 | B109: 3 | C109: 160 | D109: 25—30 | E109: [25,30) | F109: 25 | G109: 1 | H109: 30 | I109: 0 | K109: INSERT INTO exam_score_range(id, `type`, `sequence`, `name`, `nick_name`, `begin_value`, `begin_include`, `end_value`, `end_include`, remark) VALUES(1003005, 3, 160, '25—30', '[25,30)', 25, 1, 30, 0, '');
A110: 1003004 | B110: 3 | C110: 170 | D110: 20—25 | E110: [20,25) | F110: 20 | G110: 1 | H110: 25 | I110: 0 | K110: INSERT INTO exam_score_range(id, `type`, `sequence`, `name`, `nick_name`, `begin_value`, `begin_include`, `end_value`, `end_include`, remark) VALUES(1003004, 3, 170, '20—25', '[20,25)', 20, 1, 25, 0, '');
A111: 1003003 | B111: 3 | C111: 180 | D111: 15—20 | E111: [15,20) | F111: 15 | G111: 1 | H111: 20 | I111: 0 | K111: INSERT INTO exam_score_range(id, `type`, `sequence`, `name`, `nick_name`, `begin_value`, `begin_include`, `end_value`, `end_include`, remark) VALUES(1003003, 3, 180, '15—20', '[15,20)', 15, 1, 20, 0, '');
A112: 1003002 | B112: 3 | C112: 190 | D112: 10—15 | E112: [10,15) | F112: 10 | G112: 1 | H112: 15 | I112: 0 | K112: INSERT INTO exam_score_range(id, `type`, `sequence`, `name`, `nick_name`, `begin_value`, `begin_include`, `end_value`, `end_include`, remark) VALUES(1003002, 3, 190, '10—15', '[10,15)', 10, 1, 15, 0, '');
A113: 1003001 | B113: 3 | C113: 200 | D113: 5—10 | E113: [5,10) | F113: 5 | G113: 1 | H113: 10 | I113: 0 | K113: INSERT INTO exam_score_range(id, `type`, `sequence`, `name`, `nick_name`, `begin_value`, `begin_include`, `end_value`, `end_include`, remark) VALUES(1003001, 3, 200, '5—10', '[5,10)', 5, 1, 10, 0, '');
A114: 1003000 | B114: 3 | C114: 210 | D114: 0—5 | E114: [0,5) | F114: 0 | G114: 1 | H114: 5 | I114: 0 | K114: INSERT INTO exam_score_range(id, `type`, `sequence`, `name`, `nick_name`, `begin_value`, `begin_include`, `end_value`, `end_include`, remark) VALUES(1003000, 3, 210, '0—5', '[0,5)', 0, 1, 5, 0, '');
A116: =1*1000000+B116*1000+F116/10 -> 1004090 | B116: 4 | C116: 10 | D116: =F116&"—"&H116 -> 900—1050 | E116: [900,1050] | F116: 900 | G116: 1 | H116: 1050 | I116: 1 | K116: ="INSERT INTO exam_score_range(id, `type`, `sequence`, `name`, `nick_name`, `begin_value`, `begin_include`, `end_value`, `end_include`, remark) VALUES("&A116&", "&B116&", "&C116&", '"&D116&"', '"&E116&"', "&F116&", "&G116&", "&H116&", "&I116&", '"&J116&"');" -> INSERT INTO exam_score_range(id, `type`, `sequence`, `name`, `nick_name`, `begin_value`, `begin_include`, `end_value`, `end_include`, remark) VALUES(1004090, 4, 10, '900—1050', '[900,1050]', 900, 1, 1050, 1, '');
A117: 1004089 | B117: 4 | C117: 20 | D117: 890—900 | E117: ="["&F117&","&H117&")" -> [890,900) | F117: 890 | G117: 1 | H117: 900 | I117: 0 | K117: ="INSERT INTO exam_score_range(id, `type`, `sequence`, `name`, `nick_name`, `begin_value`, `begin_include`, `end_value`, `end_include`, remark) VALUES("&A117&", "&B117&", "&C117&", '"&D117&"', '"&E117&"', "&F117&", "&G117&", "&H117&", "&I117&", '"&J117&"');" -> INSERT INTO exam_score_range(id, `type`, `sequence`, `name`, `nick_name`, `begin_value`, `begin_include`, `end_value`, `end_include`, remark) VALUES(1004089, 4, 20, '890—900', '[890,900)', 890, 1, 900, 0, '');
A118: 1004088 | B118: 4 | C118: 30 | D118: 880—890 | E118: ="["&F118&","&H118&")" -> [880,890) | F118: 880 | G118: 1 | H118: 890 | I118: 0 | K118: ="INSERT INTO exam_score_range(id, `type`, `sequence`, `name`, `nick_name`, `begin_value`, `begin_include`, `end_value`, `end_include`, remark) VALUES("&A118&", "&B118&", "&C118&", '"&D118&"', '"&E118&"', "&F118&", "&G118&", "&H118&", "&I118&", '"&J118&"');" -> INSERT INTO exam_score_range(id, `type`, `sequence`, `name`, `nick_name`, `begin_value`, `begin_include`, `end_value`, `end_include`, remark) VALUES(1004088, 4, 30, '880—890', '[880,890)', 880, 1, 890, 0, '');
A119: 1004087 | B119: 4 | C119: 40 | D119: 870—880 | E119: [870,880) | F119: 870 | G119: 1 | H119: 880 | I119: 0 | K119: INSERT INTO exam_score_range(id, `type`, `sequence`, `name`, `nick_name`, `begin_value`, `begin_include`, `end_value`, `end_include`, remark) VALUES(1004087, 4, 40, '870—880', '[870,880)', 870, 1, 880, 0, '');
A120: 1004086 | B120: 4 | C120: 50 | D120: 860—870 | E120: [860,870) | F120: 860 | G120: 1 | H120: 870 | I120: 0 | K120: INSERT INTO exam_score_range(id, `type`, `sequence`, `name`, `nick_name`, `begin_value`, `begin_include`, `end_value`, `end_include`, remark) VALUES(1004086, 4, 50, '860—870', '[860,870)', 860, 1, 870, 0, '');
A121: 1004085 | B121: 4 | C121: 60 | D121: 850—860 | E121: [850,860) | F121: 850 | G121: 1 | H121: 860 | I121: 0 | K121: INSERT INTO exam_score_range(id, `type`, `sequence`, `name`, `nick_name`, `begin_value`, `begin_include`, `end_value`, `end_include`, remark) VALUES(1004085, 4, 60, '850—860', '[850,860)', 850, 1, 860, 0, '');
A122: 1004084 | B122: 4 | C122: 70 | D122: 840—850 | E122: [840,850) | F122: 840 | G122: 1 | H122: 850 | I122: 0 | K122: INSERT INTO exam_score_range(id, `type`, `sequence`, `name`, `nick_name`, `begin_value`, `begin_include`, `end_value`, `end_include`, remark) VALUES(1004084, 4, 70, '840—850', '[840,850)', 840, 1, 850, 0, '');
A123: =1*1000000+B123*1000+F123/10 -> 1004083 | B123: 4 | C123: 80 | D123: =F123&"—"&H123 -> 830—840 | E123: [830,840) | F123: 830 | G123: 1 | H123: 840 | I123: 0 | K123: INSERT INTO exam_score_range(id, `type`, `sequence`, `name`, `nick_name`, `begin_value`, `begin_include`, `end_value`, `end_include`, remark) VALUES(1004083, 4, 80, '830—840', '[830,840)', 830, 1, 840, 0, '');
A124: 1004082 | B124: 4 | C124: 90 | D124: 820—830 | E124: [820,830) | F124: 820 | G124: 1 | H124: 830 | I124: 0 | K124: INSERT INTO exam_score_range(id, `type`, `sequence`, `name`, `nick_name`, `begin_value`, `begin_include`, `end_value`, `end_include`, remark) VALUES(1004082, 4, 90, '820—830', '[820,830)', 820, 1, 830, 0, '');
A125: 1004081 | B125: 4 | C125: 100 | D125: 810—820 | E125: [810,820) | F125: 810 | G125: 1 | H125: 820 | I125: 0 | K125: INSERT INTO exam_score_range(id, `type`, `sequence`, `name`, `nick_name`, `begin_value`, `begin_include`, `end_value`, `end_include`, remark) VALUES(1004081, 4, 100, '810—820', '[810,820)', 810, 1, 820, 0, '');
A126: 1004080 | B126: 4 | C126: 110 | D126: 800—810 | E126: [800,810) | F126: 800 | G126: 1 | H126: 810 | I126: 0 | K126: INSERT INTO exam_score_range(id, `type`, `sequence`, `name`, `nick_name`, `begin_value`, `begin_include`, `end_value`, `end_include`, remark) VALUES(1004080, 4, 110, '800—810', '[800,810)', 800, 1, 810, 0, '');
A127: 1004079 | B127: 4 | C127: 120 | D127: 790—800 | E127: [790,800) | F127: 790 | G127: 1 | H127: 800 | I127: 0 | K127: INSERT INTO exam_score_range(id, `type`, `sequence`, `name`, `nick_name`, `begin_value`, `begin_include`, `end_value`, `end_include`, remark) VALUES(1004079, 4, 120, '790—800', '[790,800)', 790, 1, 800, 0, '');
A128: 1004078 | B128: 4 | C128: 130 | D128: 780—790 | E128: [780,790) | F128: 780 | G128: 1 | H128: 790 | I128: 0 | K128: INSERT INTO exam_score_range(id, `type`, `sequence`, `name`, `nick_name`, `begin_value`, `begin_include`, `end_value`, `end_include`, remark) VALUES(1004078, 4, 130, '780—790', '[780,790)', 780, 1, 790, 0, '');
A129: 1004077 | B129: 4 | C129: 140 | D129: 770—780 | E129: [770,780) | F129: 770 | G129: 1 | H129: 780 | I129: 0 | K129: INSERT INTO exam_score_range(id, `type`, `sequence`, `name`, `nick_name`, `begin_value`, `begin_include`, `end_value`, `end_include`, remark) VALUES(1004077, 4, 140, '770—780', '[770,780)', 770, 1, 780, 0, '');
A130: 1004076 | B130: 4 | C130: 150 | D130: 760—770 | E130: [760,770) | F130: 760 | G130: 1 | H130: 770 | I130: 0 | K130: INSERT INTO exam_score_range(id, `type`, `sequence`, `name`, `nick_name`, `begin_value`, `begin_include`, `end_value`, `end_include`, remark) VALUES(1004076, 4, 150, '760—770', '[760,770)', 760, 1, 770, 0, '');
A131: 1004075 | B131: 4 | C131: 160 | D131: 750—760 | E131: [750,760) | F131: 750 | G131: 1 | H131: 760 | I131: 0 | K131: INSERT INTO exam_score_range(id, `type`, `sequence`, `name`, `nick_name`, `begin_value`, `begin_include`, `end_value`, `end_include`, remark) VALUES(1004075, 4, 160, '750—760', '[750,760)', 750, 1, 760, 0, '');
A132: 1004074 | B132: 4 | C132: 170 | D132: 740—750 | E132: [740,750) | F132: 740 | G132: 1 | H132: 750 | I132: 0 | K132: INSERT INTO exam_score_range(id, `type`, `sequence`, `name`, `nick_name`, `begin_value`, `begin_include`, `end_value`, `end_include`, remark) VALUES(1004074, 4, 170, '740—750', '[740,750)', 740, 1, 750, 0, '');
A133: 1004073 | B133: 4 | C133: 180 | D133: 730—740 | E133: [730,740) | F133: 730 | G133: 1 | H133: 740 | I133: 0 | K133: INSERT INTO exam_score_range(id, `type`, `sequence`, `name`, `nick_name`, `begin_value`, `begin_include`, `end_value`, `end_include`, remark) VALUES(1004073, 4, 180, '730—740', '[730,740)', 730, 1, 740, 0, '');
A134: 1004072 | B134: 4 | C134: 190 | D134: 720—730 | E134: [720,730) | F134: 720 | G134: 1 | H134: 730 | I134: 0 | K134: INSERT INTO exam_score_range(id, `type`, `sequence`, `name`, `nick_name`, `begin_value`, `begin_include`, `end_value`, `end_include`, remark) VALUES(1004072, 4, 190, '720—730', '[720,730)', 720, 1, 730, 0, '');
A135: 1004071 | B135: 4 | C135: 200 | D135: 710—720 | E135: [710,720) | F135: 710 | G135: 1 | H135: 720 | I135: 0 | K135: INSERT INTO exam_score_range(id, `type`, `sequence`, `name`, `nick_name`, `begin_value`, `begin_include`, `end_value`, `end_include`, remark) VALUES(1004071, 4, 200, '710—720', '[710,720)', 710, 1, 720, 0, '');
A136: 1004070 | B136: 4 | C136: 210 | D136: 700—710 | E136: [700,710) | F136: 700 | G136: 1 | H136: 710 | I136: 0 | K136: INSERT INTO exam_score_range(id, `type`, `sequence`, `name`, `nick_name`, `begin_value`, `begin_include`, `end_value`, `end_include`, remark) VALUES(1004070, 4, 210, '700—710', '[700,710)', 700, 1, 710, 0, '');
A137: 1004069 | B137: 4 | C137: 220 | D137: 690—700 | E137: [690,700) | F137: 690 | G137: 1 | H137: 700 | I137: 0 | K137: INSERT INTO exam_score_range(id, `type`, `sequence`, `name`, `nick_name`, `begin_value`, `begin_include`, `end_value`, `end_include`, remark) VALUES(1004069, 4, 220, '690—700', '[690,700)', 690, 1, 700, 0, '');
A138: 1004068 | B138: 4 | C138: 230 | D138: 680—690 | E138: [680,690) | F138: 680 | G138: 1 | H138: 690 | I138: 0 | K138: INSERT INTO exam_score_range(id, `type`, `sequence`, `name`, `nick_name`, `begin_value`, `begin_include`, `end_value`, `end_include`, remark) VALUES(1004068, 4, 230, '680—690', '[680,690)', 680, 1, 690, 0, '');
A139: 1004067 | B139: 4 | C139: 240 | D139: 670—680 | E139: [670,680) | F139: 670 | G139: 1 | H139: 680 | I139: 0 | K139: INSERT INTO exam_score_range(id, `type`, `sequence`, `name`, `nick_name`, `begin_value`, `begin_include`, `end_value`, `end_include`, remark) VALUES(1004067, 4, 240, '670—680', '[670,680)', 670, 1, 680, 0, '');
A140: 1004066 | B140: 4 | C140: 250 | D140: 660—670 | E140: [660,670) | F140: 660 | G140: 1 | H140: 670 | I140: 0 | K140: INSERT INTO exam_score_range(id, `type`, `sequence`, `name`, `nick_name`, `begin_value`, `begin_include`, `end_value`, `end_include`, remark) VALUES(1004066, 4, 250, '660—670', '[660,670)', 660, 1, 670, 0, '');
A141: 1004065 | B141: 4 | C141: 260 | D141: 650—660 | E141: [650,660) | F141: 650 | G141: 1 | H141: 660 | I141: 0 | K141: INSERT INTO exam_score_range(id, `type`, `sequence`, `name`, `nick_name`, `begin_value`, `begin_include`, `end_value`, `end_include`, remark) VALUES(1004065, 4, 260, '650—660', '[650,660)', 650, 1, 660, 0, '');
A142: 1004064 | B142: 4 | C142: 270 | D142: 640—650 | E142: [640,650) | F142: 640 | G142: 1 | H142: 650 | I142: 0 | K142: INSERT INTO exam_score_range(id, `type`, `sequence`, `name`, `nick_name`, `begin_value`, `begin_include`, `end_value`, `end_include`, remark) VALUES(1004064, 4, 270, '640—650', '[640,650)', 640, 1, 650, 0, '');
A143: 1004063 | B143: 4 | C143: 280 | D143: 630—640 | E143: [630,640) | F143: 630 | G143: 1 | H143: 640 | I143: 0 | K143: INSERT INTO exam_score_range(id, `type`, `sequence`, `name`, `nick_name`, `begin_value`, `begin_include`, `end_value`, `end_include`, remark) VALUES(1004063, 4, 280, '630—640', '[630,640)', 630, 1, 640, 0, '');
A144: 1004062 | B144: 4 | C144: 290 | D144: 620—630 | E144: [620,630) | F144: 620 | G144: 1 | H144: 630 | I144: 0 | K144: INSERT INTO exam_score_range(id, `type`, `sequence`, `name`, `nick_name`, `begin_value`, `begin_include`, `end_value`, `end_include`, remark) VALUES(1004062, 4, 290, '620—630', '[620,630)', 620, 1, 630, 0, '');
A145: 1004061 | B145: 4 | C145: 300 | D145: 610—620 | E145: [610,620) | F145: 610 | G145: 1 | H145: 620 | I145: 0 | K145: INSERT INTO exam_score_range(id, `type`, `sequence`, `name`, `nick_name`, `begin_value`, `begin_include`, `end_value`, `end_include`, remark) VALUES(1004061, 4, 300, '610—620', '[610,620)', 610, 1, 620, 0, '');
A146: 1004060 | B146: 4 | C146: 310 | D146: 600—610 | E146: [600,610) | F146: 600 | G146: 1 | H146: 610 | I146: 0 | K146: INSERT INTO exam_score_range(id, `type`, `sequence`, `name`, `nick_name`, `begin_value`, `begin_include`, `end_value`, `end_include`, remark) VALUES(1004060, 4, 310, '600—610', '[600,610)', 600, 1, 610, 0, '');
A147: 1004059 | B147: 4 | C147: 320 | D147: 590—600 | E147: [590,600) | F147: 590 | G147: 1 | H147: 600 | I147: 0 | K147: INSERT INTO exam_score_range(id, `type`, `sequence`, `name`, `nick_name`, `begin_value`, `begin_include`, `end_value`, `end_include`, remark) VALUES(1004059, 4, 320, '590—600', '[590,600)', 590, 1, 600, 0, '');
A148: 1004058 | B148: 4 | C148: 330 | D148: 580—590 | E148: [580,590) | F148: 580 | G148: 1 | H148: 590 | I148: 0 | K148: INSERT INTO exam_score_range(id, `type`, `sequence`, `name`, `nick_name`, `begin_value`, `begin_include`, `end_value`, `end_include`, remark) VALUES(1004058, 4, 330, '580—590', '[580,590)', 580, 1, 590, 0, '');
A149: 1004057 | B149: 4 | C149: 340 | D149: 570—580 | E149: [570,580) | F149: 570 | G149: 1 | H149: 580 | I149: 0 | K149: INSERT INTO exam_score_range(id, `type`, `sequence`, `name`, `nick_name`, `begin_value`, `begin_include`, `end_value`, `end_include`, remark) VALUES(1004057, 4, 340, '570—580', '[570,580)', 570, 1, 580, 0, '');
A150: 1004056 | B150: 4 | C150: 350 | D150: 560—570 | E150: ="["&F150&","&H150&")" -> [560,570) | F150: 560 | G150: 1 | H150: 570 | I150: 0 | K150: ="INSERT INTO exam_score_range(id, `type`, `sequence`, `name`, `nick_name`, `begin_value`, `begin_include`, `end_value`, `end_include`, remark) VALUES("&A150&", "&B150&", "&C150&", '"&D150&"', '"&E150&"', "&F150&", "&G150&", "&H150&", "&I150&", '"&J150&"');" -> INSERT INTO exam_score_range(id, `type`, `sequence`, `name`, `nick_name`, `begin_value`, `begin_include`, `end_value`, `end_include`, remark) VALUES(1004056, 4, 350, '560—570', '[560,570)', 560, 1, 570, 0, '');
A151: 1004055 | B151: 4 | C151: 360 | D151: 550—560 | E151: [550,560) | F151: 550 | G151: 1 | H151: 560 | I151: 0 | K151: INSERT INTO exam_score_range(id, `type`, `sequence`, `name`, `nick_name`, `begin_value`, `begin_include`, `end_value`, `end_include`, remark) VALUES(1004055, 4, 360, '550—560', '[550,560)', 550, 1, 560, 0, '');
A152: 1004054 | B152: 4 | C152: 370 | D152: 540—550 | E152: [540,550) | F152: 540 | G152: 1 | H152: 550 | I152: 0 | K152: INSERT INTO exam_score_range(id, `type`, `sequence`, `name`, `nick_name`, `begin_value`, `begin_include`, `end_value`, `end_include`, remark) VALUES(1004054, 4, 370, '540—550', '[540,550)', 540, 1, 550, 0, '');
A153: 1004053 | B153: 4 | C153: 380 | D153: 530—540 | E153: [530,540) | F153: 530 | G153: 1 | H153: 540 | I153: 0 | K153: INSERT INTO exam_score_range(id, `type`, `sequence`, `name`, `nick_name`, `begin_value`, `begin_include`, `end_value`, `end_include`, remark) VALUES(1004053, 4, 380, '530—540', '[530,540)', 530, 1, 540, 0, '');
A154: 1004052 | B154: 4 | C154: 390 | D154: 520—530 | E154: [520,530) | F154: 520 | G154: 1 | H154: 530 | I154: 0 | K154: INSERT INTO exam_score_range(id, `type`, `sequence`, `name`, `nick_name`, `begin_value`, `begin_include`, `end_value`, `end_include`, remark) VALUES(1004052, 4, 390, '520—530', '[520,530)', 520, 1, 530, 0, '');
A155: =1*1000000+B155*1000+F155/10 -> 1004051 | B155: 4 | C155: 400 | D155: =F155&"—"&H155 -> 510—520 | E155: [510,520) | F155: 510 | G155: 1 | H155: 520 | I155: 0 | K155: INSERT INTO exam_score_range(id, `type`, `sequence`, `name`, `nick_name`, `begin_value`, `begin_include`, `end_value`, `end_include`, remark) VALUES(1004051, 4, 400, '510—520', '[510,520)', 510, 1, 520, 0, '');
A156: 1004050 | B156: 4 | C156: 410 | D156: 500—510 | E156: [500,510) | F156: 500 | G156: 1 | H156: 510 | I156: 0 | K156: INSERT INTO exam_score_range(id, `type`, `sequence`, `name`, `nick_name`, `begin_value`, `begin_include`, `end_value`, `end_include`, remark) VALUES(1004050, 4, 410, '500—510', '[500,510)', 500, 1, 510, 0, '');
A157: 1004049 | B157: 4 | C157: 420 | D157: 490—500 | E157: [490,500) | F157: 490 | G157: 1 | H157: 500 | I157: 0 | K157: INSERT INTO exam_score_range(id, `type`, `sequence`, `name`, `nick_name`, `begin_value`, `begin_include`, `end_value`, `end_include`, remark) VALUES(1004049, 4, 420, '490—500', '[490,500)', 490, 1, 500, 0, '');
A158: 1004048 | B158: 4 | C158: 430 | D158: 480—490 | E158: [480,490) | F158: 480 | G158: 1 | H158: 490 | I158: 0 | K158: INSERT INTO exam_score_range(id, `type`, `sequence`, `name`, `nick_name`, `begin_value`, `begin_include`, `end_value`, `end_include`, remark) VALUES(1004048, 4, 430, '480—490', '[480,490)', 480, 1, 490, 0, '');
A159: 1004047 | B159: 4 | C159: 440 | D159: 470—480 | E159: [470,480) | F159: 470 | G159: 1 | H159: 480 | I159: 0 | K159: INSERT INTO exam_score_range(id, `type`, `sequence`, `name`, `nick_name`, `begin_value`, `begin_include`, `end_value`, `end_include`, remark) VALUES(1004047, 4, 440, '470—480', '[470,480)', 470, 1, 480, 0, '');
A160: 1004046 | B160: 4 | C160: 450 | D160: 460—470 | E160: [460,470) | F160: 460 | G160: 1 | H160: 470 | I160: 0 | K160: INSERT INTO exam_score_range(id, `type`, `sequence`, `name`, `nick_name`, `begin_value`, `begin_include`, `end_value`, `end_include`, remark) VALUES(1004046, 4, 450, '460—470', '[460,470)', 460, 1, 470, 0, '');
A161: 1004045 | B161: 4 | C161: 460 | D161: 450—460 | E161: [450,460) | F161: 450 | G161: 1 | H161: 460 | I161: 0 | K161: INSERT INTO exam_score_range(id, `type`, `sequence`, `name`, `nick_name`, `begin_value`, `begin_include`, `end_value`, `end_include`, remark) VALUES(1004045, 4, 460, '450—460', '[450,460)', 450, 1, 460, 0, '');
A162: 1004044 | B162: 4 | C162: 470 | D162: 440—450 | E162: [440,450) | F162: 440 | G162: 1 | H162: 450 | I162: 0 | K162: INSERT INTO exam_score_range(id, `type`, `sequence`, `name`, `nick_name`, `begin_value`, `begin_include`, `end_value`, `end_include`, remark) VALUES(1004044, 4, 470, '440—450', '[440,450)', 440, 1, 450, 0, '');
A163: 1004043 | B163: 4 | C163: 480 | D163: 430—440 | E163: [430,440) | F163: 430 | G163: 1 | H163: 440 | I163: 0 | K163: INSERT INTO exam_score_range(id, `type`, `sequence`, `name`, `nick_name`, `begin_value`, `begin_include`, `end_value`, `end_include`, remark) VALUES(1004043, 4, 480, '430—440', '[430,440)', 430, 1, 440, 0, '');
A164: 1004042 | B164: 4 | C164: 490 | D164: 420—430 | E164: [420,430) | F164: 420 | G164: 1 | H164: 430 | I164: 0 | K164: INSERT INTO exam_score_range(id, `type`, `sequence`, `name`, `nick_name`, `begin_value`, `begin_include`, `end_value`, `end_include`, remark) VALUES(1004042, 4, 490, '420—430', '[420,430)', 420, 1, 430, 0, '');
A165: 1004041 | B165: 4 | C165: 500 | D165: 410—420 | E165: [410,420) | F165: 410 | G165: 1 | H165: 420 | I165: 0 | K165: INSERT INTO exam_score_range(id, `type`, `sequence`, `name`, `nick_name`, `begin_value`, `begin_include`, `end_value`, `end_include`, remark) VALUES(1004041, 4, 500, '410—420', '[410,420)', 410, 1, 420, 0, '');
A166: 1004040 | B166: 4 | C166: 510 | D166: 400—410 | E166: [400,410) | F166: 400 | G166: 1 | H166: 410 | I166: 0 | K166: INSERT INTO exam_score_range(id, `type`, `sequence`, `name`, `nick_name`, `begin_value`, `begin_include`, `end_value`, `end_include`, remark) VALUES(1004040, 4, 510, '400—410', '[400,410)', 400, 1, 410, 0, '');
A167: 1004039 | B167: 4 | C167: 520 | D167: 390—400 | E167: [390,400) | F167: 390 | G167: 1 | H167: 400 | I167: 0 | K167: INSERT INTO exam_score_range(id, `type`, `sequence`, `name`, `nick_name`, `begin_value`, `begin_include`, `end_value`, `end_include`, remark) VALUES(1004039, 4, 520, '390—400', '[390,400)', 390, 1, 400, 0, '');
A168: 1004038 | B168: 4 | C168: 530 | D168: 380—390 | E168: [380,390) | F168: 380 | G168: 1 | H168: 390 | I168: 0 | K168: INSERT INTO exam_score_range(id, `type`, `sequence`, `name`, `nick_name`, `begin_value`, `begin_include`, `end_value`, `end_include`, remark) VALUES(1004038, 4, 530, '380—390', '[380,390)', 380, 1, 390, 0, '');
A169: 1004037 | B169: 4 | C169: 540 | D169: 370—380 | E169: [370,380) | F169: 370 | G169: 1 | H169: 380 | I169: 0 | K169: INSERT INTO exam_score_range(id, `type`, `sequence`, `name`, `nick_name`, `begin_value`, `begin_include`, `end_value`, `end_include`, remark) VALUES(1004037, 4, 540, '370—380', '[370,380)', 370, 1, 380, 0, '');
A170: 1004036 | B170: 4 | C170: 550 | D170: 360—370 | E170: [360,370) | F170: 360 | G170: 1 | H170: 370 | I170: 0 | K170: INSERT INTO exam_score_range(id, `type`, `sequence`, `name`, `nick_name`, `begin_value`, `begin_include`, `end_value`, `end_include`, remark) VALUES(1004036, 4, 550, '360—370', '[360,370)', 360, 1, 370, 0, '');
A171: 1004035 | B171: 4 | C171: 560 | D171: 350—360 | E171: [350,360) | F171: 350 | G171: 1 | H171: 360 | I171: 0 | K171: INSERT INTO exam_score_range(id, `type`, `sequence`, `name`, `nick_name`, `begin_value`, `begin_include`, `end_value`, `end_include`, remark) VALUES(1004035, 4, 560, '350—360', '[350,360)', 350, 1, 360, 0, '');
A172: 1004034 | B172: 4 | C172: 570 | D172: 340—350 | E172: [340,350) | F172: 340 | G172: 1 | H172: 350 | I172: 0 | K172: INSERT INTO exam_score_range(id, `type`, `sequence`, `name`, `nick_name`, `begin_value`, `begin_include`, `end_value`, `end_include`, remark) VALUES(1004034, 4, 570, '340—350', '[340,350)', 340, 1, 350, 0, '');
A173: 1004033 | B173: 4 | C173: 580 | D173: 330—340 | E173: [330,340) | F173: 330 | G173: 1 | H173: 340 | I173: 0 | K173: INSERT INTO exam_score_range(id, `type`, `sequence`, `name`, `nick_name`, `begin_value`, `begin_include`, `end_value`, `end_include`, remark) VALUES(1004033, 4, 580, '330—340', '[330,340)', 330, 1, 340, 0, '');
A174: 1004032 | B174: 4 | C174: 590 | D174: 320—330 | E174: [320,330) | F174: 320 | G174: 1 | H174: 330 | I174: 0 | K174: INSERT INTO exam_score_range(id, `type`, `sequence`, `name`, `nick_name`, `begin_value`, `begin_include`, `end_value`, `end_include`, remark) VALUES(1004032, 4, 590, '320—330', '[320,330)', 320, 1, 330, 0, '');
A175: 1004031 | B175: 4 | C175: 600 | D175: 310—320 | E175: [310,320) | F175: 310 | G175: 1 | H175: 320 | I175: 0 | K175: INSERT INTO exam_score_range(id, `type`, `sequence`, `name`, `nick_name`, `begin_value`, `begin_include`, `end_value`, `end_include`, remark) VALUES(1004031, 4, 600, '310—320', '[310,320)', 310, 1, 320, 0, '');
A176: 1004030 | B176: 4 | C176: 610 | D176: 300—310 | E176: [300,310) | F176: 300 | G176: 1 | H176: 310 | I176: 0 | K176: INSERT INTO exam_score_range(id, `type`, `sequence`, `name`, `nick_name`, `begin_value`, `begin_include`, `end_value`, `end_include`, remark) VALUES(1004030, 4, 610, '300—310', '[300,310)', 300, 1, 310, 0, '');
A177: =1*1000000+B177*1000+F177/10 -> 1004029 | B177: 4 | C177: 611 | D177: =F177&"—"&H177 -> 290—300 | E177: [290,300) | F177: 290 | G177: 1 | H177: 300 | I177: 0 | K177: INSERT INTO exam_score_range(id, `type`, `sequence`, `name`, `nick_name`, `begin_value`, `begin_include`, `end_value`, `end_include`, remark) VALUES(1004029, 4, 611, '290—300', '[290,300)', 290, 1, 300, 0, '');
A178: 1004028 | B178: 4 | C178: 612 | D178: 280—290 | E178: [280,290) | F178: 280 | G178: 1 | H178: 290 | I178: 0 | K178: INSERT INTO exam_score_range(id, `type`, `sequence`, `name`, `nick_name`, `begin_value`, `begin_include`, `end_value`, `end_include`, remark) VALUES(1004028, 4, 612, '280—290', '[280,290)', 280, 1, 290, 0, '');
A179: 1004027 | B179: 4 | C179: 613 | D179: 270—280 | E179: [270,280) | F179: 270 | G179: 1 | H179: 280 | I179: 0 | K179: INSERT INTO exam_score_range(id, `type`, `sequence`, `name`, `nick_name`, `begin_value`, `begin_include`, `end_value`, `end_include`, remark) VALUES(1004027, 4, 613, '270—280', '[270,280)', 270, 1, 280, 0, '');
A180: 1004026 | B180: 4 | C180: 614 | D180: 260—270 | E180: [260,270) | F180: 260 | G180: 1 | H180: 270 | I180: 0 | K180: INSERT INTO exam_score_range(id, `type`, `sequence`, `name`, `nick_name`, `begin_value`, `begin_include`, `end_value`, `end_include`, remark) VALUES(1004026, 4, 614, '260—270', '[260,270)', 260, 1, 270, 0, '');
A181: 1004025 | B181: 4 | C181: 615 | D181: 250—260 | E181: [250,260) | F181: 250 | G181: 1 | H181: 260 | I181: 0 | K181: INSERT INTO exam_score_range(id, `type`, `sequence`, `name`, `nick_name`, `begin_value`, `begin_include`, `end_value`, `end_include`, remark) VALUES(1004025, 4, 615, '250—260', '[250,260)', 250, 1, 260, 0, '');
A182: 1004024 | B182: 4 | C182: 616 | D182: 240—250 | E182: ="["&F182&","&H182&")" -> [240,250) | F182: 240 | G182: 1 | H182: 250 | I182: 0 | K182: ="INSERT INTO exam_score_range(id, `type`, `sequence`, `name`, `nick_name`, `begin_value`, `begin_include`, `end_value`, `end_include`, remark) VALUES("&A182&", "&B182&", "&C182&", '"&D182&"', '"&E182&"', "&F182&", "&G182&", "&H182&", "&I182&", '"&J182&"');" -> INSERT INTO exam_score_range(id, `type`, `sequence`, `name`, `nick_name`, `begin_value`, `begin_include`, `end_value`, `end_include`, remark) VALUES(1004024, 4, 616, '240—250', '[240,250)', 240, 1, 250, 0, '');
A183: 1004000 | B183: 4 | C183: 620 | D183: 0—240 | E183: [0,240) | F183: 0 | G183: 1 | H183: 240 | I183: 0 | K183: INSERT INTO exam_score_range(id, `type`, `sequence`, `name`, `nick_name`, `begin_value`, `begin_include`, `end_value`, `end_include`, remark) VALUES(1004000, 4, 620, '0—240', '[0,240)', 0, 1, 240, 0, '');
A185: =1*1000000+B185*1000+F185 -> 1005700 | B185: 5 | C185: 10 | D185: 700及以上 | E185: 700及以上 | F185: 700 | G185: 1 | H185: 2000 | I185: 1 | K185: ="INSERT INTO exam_score_range(id, `type`, `sequence`, `name`, `nick_name`, `begin_value`, `begin_include`, `end_value`, `end_include`, remark) VALUES("&A185&", "&B185&", "&C185&", '"&D185&"', '"&E185&"', "&F185&", "&G185&", "&H185&", "&I185&", '"&J185&"');" -> INSERT INTO exam_score_range(id, `type`, `sequence`, `name`, `nick_name`, `begin_value`, `begin_include`, `end_value`, `end_include`, remark) VALUES(1005700, 5, 10, '700及以上', '700及以上', 700, 1, 2000, 1, '');
A186: =1*1000000+B186*1000+F186 -> 1005690 | B186: 5 | C186: 20 | D186: =F186&"—"&H186 -> 690—700 | E186: [690,700) | F186: 690 | G186: 1 | H186: =F185 -> 700 | I186: 0 | K186: INSERT INTO exam_score_range(id, `type`, `sequence`, `name`, `nick_name`, `begin_value`, `begin_include`, `end_value`, `end_include`, remark) VALUES(1005690, 5, 20, '690—700', '[690,700)', 690, 1, 700, 0, '');
A187: 1005680 | B187: 5 | C187: 30 | D187: =F187&"—"&H187 -> 680—690 | E187: ="["&F187&","&H187&")" -> [680,690) | F187: 680 | G187: 1 | H187: =F186 -> 690 | I187: 0 | K187: ="INSERT INTO exam_score_range(id, `type`, `sequence`, `name`, `nick_name`, `begin_value`, `begin_include`, `end_value`, `end_include`, remark) VALUES("&A187&", "&B187&", "&C187&", '"&D187&"', '"&E187&"', "&F187&", "&G187&", "&H187&", "&I187&", '"&J187&"');" -> INSERT INTO exam_score_range(id, `type`, `sequence`, `name`, `nick_name`, `begin_value`, `begin_include`, `end_value`, `end_include`, remark) VALUES(1005680, 5, 30, '680—690', '[680,690)', 680, 1, 690, 0, '');
A188: 1005670 | B188: 5 | C188: 40 | D188: 670—680 | E188: [670,680) | F188: 670 | G188: 1 | H188: 680 | I188: 0 | K188: INSERT INTO exam_score_range(id, `type`, `sequence`, `name`, `nick_name`, `begin_value`, `begin_include`, `end_value`, `end_include`, remark) VALUES(1005670, 5, 40, '670—680', '[670,680)', 670, 1, 680, 0, '');
A189: 1005660 | B189: 5 | C189: 50 | D189: 660—670 | E189: [660,670) | F189: 660 | G189: 1 | H189: 670 | I189: 0 | K189: INSERT INTO exam_score_range(id, `type`, `sequence`, `name`, `nick_name`, `begin_value`, `begin_include`, `end_value`, `end_include`, remark) VALUES(1005660, 5, 50, '660—670', '[660,670)', 660, 1, 670, 0, '');
A190: 1005650 | B190: 5 | C190: 60 | D190: 650—660 | E190: [650,660) | F190: 650 | G190: 1 | H190: 660 | I190: 0 | K190: INSERT INTO exam_score_range(id, `type`, `sequence`, `name`, `nick_name`, `begin_value`, `begin_include`, `end_value`, `end_include`, remark) VALUES(1005650, 5, 60, '650—660', '[650,660)', 650, 1, 660, 0, '');
A191: 1005640 | B191: 5 | C191: 70 | D191: 640—650 | E191: [640,650) | F191: 640 | G191: 1 | H191: 650 | I191: 0 | K191: INSERT INTO exam_score_range(id, `type`, `sequence`, `name`, `nick_name`, `begin_value`, `begin_include`, `end_value`, `end_include`, remark) VALUES(1005640, 5, 70, '640—650', '[640,650)', 640, 1, 650, 0, '');
A192: 1005630 | B192: 5 | C192: 80 | D192: 630—640 | E192: [630,640) | F192: 630 | G192: 1 | H192: 640 | I192: 0 | K192: INSERT INTO exam_score_range(id, `type`, `sequence`, `name`, `nick_name`, `begin_value`, `begin_include`, `end_value`, `end_include`, remark) VALUES(1005630, 5, 80, '630—640', '[630,640)', 630, 1, 640, 0, '');
A193: 1005625 | B193: 5 | C193: 90 | D193: 625—630 | E193: [625,630) | F193: 625 | G193: 1 | H193: 630 | I193: 0 | K193: INSERT INTO exam_score_range(id, `type`, `sequence`, `name`, `nick_name`, `begin_value`, `begin_include`, `end_value`, `end_include`, remark) VALUES(1005625, 5, 90, '625—630', '[625,630)', 625, 1, 630, 0, '');
A194: 1005620 | B194: 5 | C194: 100 | D194: 620—625 | E194: [620,625) | F194: 620 | G194: 1 | H194: 625 | I194: 0 | K194: INSERT INTO exam_score_range(id, `type`, `sequence`, `name`, `nick_name`, `begin_value`, `begin_include`, `end_value`, `end_include`, remark) VALUES(1005620, 5, 100, '620—625', '[620,625)', 620, 1, 625, 0, '');
A195: 1005615 | B195: 5 | C195: 110 | D195: 615—620 | E195: [615,620) | F195: 615 | G195: 1 | H195: 620 | I195: 0 | K195: INSERT INTO exam_score_range(id, `type`, `sequence`, `name`, `nick_name`, `begin_value`, `begin_include`, `end_value`, `end_include`, remark) VALUES(1005615, 5, 110, '615—620', '[615,620)', 615, 1, 620, 0, '');
A196: 1005610 | B196: 5 | C196: 120 | D196: 610—615 | E196: [610,615) | F196: 610 | G196: 1 | H196: 615 | I196: 0 | K196: INSERT INTO exam_score_range(id, `type`, `sequence`, `name`, `nick_name`, `begin_value`, `begin_include`, `end_value`, `end_include`, remark) VALUES(1005610, 5, 120, '610—615', '[610,615)', 610, 1, 615, 0, '');
A197: 1005605 | B197: 5 | C197: 130 | D197: 605—610 | E197: [605,610) | F197: 605 | G197: 1 | H197: 610 | I197: 0 | K197: INSERT INTO exam_score_range(id, `type`, `sequence`, `name`, `nick_name`, `begin_value`, `begin_include`, `end_value`, `end_include`, remark) VALUES(1005605, 5, 130, '605—610', '[605,610)', 605, 1, 610, 0, '');
A198: 1005600 | B198: 5 | C198: 140 | D198: 600—605 | E198: [600,605) | F198: 600 | G198: 1 | H198: 605 | I198: 0 | K198: INSERT INTO exam_score_range(id, `type`, `sequence`, `name`, `nick_name`, `begin_value`, `begin_include`, `end_value`, `end_include`, remark) VALUES(1005600, 5, 140, '600—605', '[600,605)', 600, 1, 605, 0, '');
A199: 1005595 | B199: 5 | C199: 150 | D199: 595—600 | E199: [595,600) | F199: 595 | G199: 1 | H199: 600 | I199: 0 | K199: INSERT INTO exam_score_range(id, `type`, `sequence`, `name`, `nick_name`, `begin_value`, `begin_include`, `end_value`, `end_include`, remark) VALUES(1005595, 5, 150, '595—600', '[595,600)', 595, 1, 600, 0, '');
A200: 1005590 | B200: 5 | C200: 160 | D200: 590—595 | E200: [590,595) | F200: 590 | G200: 1 | H200: 595 | I200: 0 | K200: INSERT INTO exam_score_range(id, `type`, `sequence`, `name`, `nick_name`, `begin_value`, `begin_include`, `end_value`, `end_include`, remark) VALUES(1005590, 5, 160, '590—595', '[590,595)', 590, 1, 595, 0, '');
A201: 1005585 | B201: 5 | C201: 170 | D201: 585—590 | E201: [585,590) | F201: 585 | G201: 1 | H201: 590 | I201: 0 | K201: INSERT INTO exam_score_range(id, `type`, `sequence`, `name`, `nick_name`, `begin_value`, `begin_include`, `end_value`, `end_include`, remark) VALUES(1005585, 5, 170, '585—590', '[585,590)', 585, 1, 590, 0, '');
A202: 1005580 | B202: 5 | C202: 180 | D202: 580—585 | E202: [580,585) | F202: 580 | G202: 1 | H202: 585 | I202: 0 | K202: INSERT INTO exam_score_range(id, `type`, `sequence`, `name`, `nick_name`, `begin_value`, `begin_include`, `end_value`, `end_include`, remark) VALUES(1005580, 5, 180, '580—585', '[580,585)', 580, 1, 585, 0, '');
A203: 1005575 | B203: 5 | C203: 190 | D203: 575—580 | E203: [575,580) | F203: 575 | G203: 1 | H203: 580 | I203: 0 | K203: INSERT INTO exam_score_range(id, `type`, `sequence`, `name`, `nick_name`, `begin_value`, `begin_include`, `end_value`, `end_include`, remark) VALUES(1005575, 5, 190, '575—580', '[575,580)', 575, 1, 580, 0, '');
A204: 1005570 | B204: 5 | C204: 200 | D204: 570—575 | E204: [570,575) | F204: 570 | G204: 1 | H204: 575 | I204: 0 | K204: INSERT INTO exam_score_range(id, `type`, `sequence`, `name`, `nick_name`, `begin_value`, `begin_include`, `end_value`, `end_include`, remark) VALUES(1005570, 5, 200, '570—575', '[570,575)', 570, 1, 575, 0, '');
A205: 1005560 | B205: 5 | C205: 210 | D205: 560—570 | E205: [560,570) | F205: 560 | G205: 1 | H205: 570 | I205: 0 | K205: INSERT INTO exam_score_range(id, `type`, `sequence`, `name`, `nick_name`, `begin_value`, `begin_include`, `end_value`, `end_include`, remark) VALUES(1005560, 5, 210, '560—570', '[560,570)', 560, 1, 570, 0, '');
... 111 more rows
